fUST/lending_fUST_20250723
["ID","MTS","AMOUNT","RATE_DAILY","PERIOD"]
[374274281,1753263040880,-151.0,0.00020791,2]
[374274283,1753263040890,-151.0,0.00020791,2]
[374274284,1753263040899,-151.0,0.00020791,2]
[374274286,1753263040908,-151.0,0.00020791,2]
[374274288,1753263040917,-151.0,0.00020791,2]
[374274290,1753263040926,-151.98065924,0.00020791,2]
[374274292,1753263040937,-152.71936777,0.00020791,2]
[374274295,1753263040946,-151.0,0.00020791,2]
[374274297,1753263040955,-151.0,0.00020791,2]
[374274300,1753263040964,-151.0,0.00020791,2]
[374274303,1753263040973,-151.0,0.00020791,2]
[374274306,1753263040982,-151.0,0.00020791,2]
[374274309,1753263040991,-151.0,0.00020791,2]
[374274312,1753263041000,-151.0,0.00020791,2]
[374274314,1753263041010,-151.0,0.00020791,2]
[374274317,1753263041019,-151.0,0.00020791,2]
[374274320,1753263041028,-151.0,0.00020791,2]
[374274323,1753263041037,-151.0,0.00020791,2]
[374274326,1753263041047,-3801.642,0.00020791,2]
[374274329,1753263041056,-151.0,0.00020791,2]
[374274332,1753263041065,-151.0,0.00020791,2]
[374274335,1753263041074,-151.0,0.00020791,2]
[374274338,1753263041083,-151.0,0.00020791,2]
[374274341,1753263041092,-151.0,0.00020791,2]
[374274344,1753263041102,-25000.0,0.00020791,2]
[374274347,1753263041111,-15859.74815906,0.00020791,2]
[374274349,1753263041120,-1329.22,0.00020818,2]
[374274352,1753263041130,-766.09,0.00020818,2]
[374274355,1753263041139,-460.0,0.00020821,2]
[374274357,1753263041148,-1845.39,0.00020821,2]
[374274360,1753263041157,-620.0,0.00020821,2]
[374274362,1753263041166,-460.0,0.00020821,2]
[374274364,1753263041176,-460.0,0.00020821,2]
[374274367,1753263041186,-675.93,0.00020821,2]
[374274369,1753263041195,-460.0,0.00020821,2]
[374274372,1753263041204,-460.0,0.00020821,2]
[374274375,1753263041214,-1524.84,0.00020821,2]
[374274377,1753263041223,-460.0,0.00020821,2]
[374274380,1753263041233,-797.63,0.00020821,2]
[374274382,1753263041242,-213.36,0.00020821,2]
[374274385,1753263041252,-460.0,0.00020821,2]
[374274387,1753263041261,-1493.61,0.00020821,2]
[374274390,1753263041270,-460.0,0.00020821,2]
[374274392,1753263041279,-918.54,0.00020821,2]
[374274395,1753263041288,-460.0,0.00020821,2]
[374274397,1753263041297,-460.0,0.00020821,2]
[374274399,1753263041308,-1445.62,0.00020821,2]
[374274424,1753263041444,-460.0,0.00020821,2]
[374274427,1753263041454,-231.62528859,0.00020821,2]
[374274429,1753263041464,-460.0,0.00020821,2]
[374274432,1753263041473,-464.88,0.00020821,2]
[374274434,1753263041484,-460.0,0.00020821,2]
[374274437,1753263041494,-460.0,0.00020821,2]
[374274440,1753263041503,-460.0,0.00020821,2]
[374274442,1753263041513,-460.0,0.00020821,2]
[374274444,1753263041522,-1423.3,0.00020821,2]
[374274446,1753263041531,-460.0,0.00020821,2]
[374274448,1753263041541,-460.0,0.00020821,2]
[374274450,1753263041550,-460.0,0.00020821,2]
[374274453,1753263041561,-460.0,0.00020821,2]
[374274456,1753263041570,-460.0,0.00020821,2]
[374274459,1753263041580,-460.0,0.00020821,2]
[374274462,1753263041589,-2006.55,0.00020821,2]
[374274465,1753263041599,-1267.73,0.00020821,2]
[374274468,1753263041609,-1053.0,0.00020821,2]
[374274471,1753263041622,-3355.53,0.00020821,2]
[374274474,1753263041631,-3942.302754,0.00020846,2]
[374274477,1753263041641,-420.0,0.00020899,2]
[374274480,1753263041651,-4088.1679559,0.00020901,2]
[374274483,1753263041660,-1025.92947994,0.00020934,4]
[374274486,1753263041671,-1634.78896283,0.00020956,2]
[374274489,1753263041680,-260.94857746,0.00020997,2]
[374274492,1753263041691,-987.30247237,0.00021022,2]
[374274495,1753263041700,-314.32,0.00021086,3]
[374274498,1753263041710,-1329.22,0.00021092,2]
[374274502,1753263041720,-766.09,0.00021092,2]
[374274505,1753263041730,-500.0,0.00021094,2]
[374274508,1753263041739,-460.0,0.00021095,2]
[374274511,1753263041748,-1845.39,0.00021095,2]
[374274514,1753263041757,-620.0,0.00021095,2]
[374274517,1753263041766,-460.0,0.00021095,2]
[374274520,1753263041775,-460.0,0.00021095,2]
[374274522,1753263041785,-675.93,0.00021095,2]
[374274525,1753263041794,-460.0,0.00021095,2]
[374274528,1753263041803,-460.0,0.00021095,2]
[374274531,1753263041812,-1524.84,0.00021095,2]
[374274533,1753263041822,-460.0,0.00021095,2]
[374274537,1753263041831,-797.63,0.00021095,2]
[374274539,1753263041840,-460.0,0.00021095,2]
[374274543,1753263041850,-1493.61,0.00021095,2]
[374274544,1753263041859,-460.0,0.00021095,2]
[374274546,1753263041869,-918.54,0.00021095,2]
[374274549,1753263041878,-460.0,0.00021095,2]
[374274550,1753263041888,-460.0,0.00021095,2]
[374274552,1753263041900,-1445.62,0.00021095,2]
[374274555,1753263041910,-460.0,0.00021095,2]
[374274557,1753263041919,-460.0,0.00021095,2]
[374274558,1753263041928,-464.88,0.00021095,2]
[374274561,1753263041939,-460.0,0.00021095,2]
[374274563,1753263041948,-235.26697358,0.00021095,2]
[374274565,1753263041964,-224.73302642,0.00021095,2]
[374274567,1753263041974,-460.0,0.00021095,2]
[374274569,1753263041983,-460.0,0.00021095,2]
[374274571,1753263041992,-1423.3,0.00021095,2]
[374274573,1753263042002,-460.0,0.00021095,2]
[374274575,1753263042011,-200.3,0.00021095,2]
[374274577,1753263042020,-252.94,0.00021095,2]
[374274579,1753263042029,-460.0,0.00021095,2]
[374274581,1753263042039,-460.0,0.00021095,2]
[374274583,1753263042049,-460.0,0.00021095,2]
[374274585,1753263042058,-2006.55,0.00021095,2]
[374274587,1753263042068,-1267.73,0.00021095,2]
[374274589,1753263042078,-220.81639038,0.00021095,2]
[374274591,1753263042090,-763.26977313,0.00021095,2]
[374274594,1753263042101,-68.91383649,0.00021095,2]
[374274596,1753263042111,-3355.53,0.00021095,2]
[374274598,1753263042120,-1025.92947994,0.00021141,4]
[374274600,1753263042129,-40.87434324,0.00021157,2]
[374274602,1753263042141,-1459.12565676,0.00021157,2]
[374274604,1753263042150,-260.0,0.00021213,2]
[374274607,1753263042160,-308.76,0.00021219,2]
[374274610,1753263042169,-1508.39549157,0.00021314,2]
[374274612,1753263042179,-1017.28462823,0.00021314,2]
[374274614,1753263042190,-611.32158691,0.00021338,2]
[374274616,1753263042199,-152.45592811,0.00021339,2]
[374274618,1753263042209,-25000.0,0.00021339,2]
[374274620,1753263042219,-1025.92947994,0.00021348,5]
[374274622,1753263042228,-343.14,0.0002136,3]
[374274624,1753263042237,-1329.22,0.00021366,2]
[374274626,1753263042247,-766.09,0.00021366,2]
[374274628,1753263042256,-500.0,0.00021368,2]
[374274630,1753263042266,-460.0,0.00021369,2]
[374274633,1753263042276,-1845.39,0.00021369,2]
[374274636,1753263042286,-620.0,0.00021369,2]
[374274638,1753263042296,-500.0,0.00021369,2]
[374274641,1753263042305,-460.0,0.00021369,2]
[374274643,1753263042315,-675.93,0.00021369,2]
[374274645,1753263042325,-460.0,0.00021369,2]
[374274646,1753263042335,-460.0,0.00021369,2]
[374274648,1753263042344,-1524.84,0.00021369,2]
[374274651,1753263042354,-460.0,0.00021369,2]
[374274653,1753263042364,-797.63,0.00021369,2]
[374274655,1753263042374,-460.0,0.00021369,2]
[374274658,1753263042384,-1493.61,0.00021369,2]
[374274660,1753263042394,-460.0,0.00021369,2]
[374274662,1753263042404,-918.54,0.00021369,2]
[374274664,1753263042413,-460.0,0.00021369,2]
[374274666,1753263042423,-460.0,0.00021369,2]
[374274668,1753263042432,-1445.62,0.00021369,2]
[374274669,1753263042445,-460.0,0.00021369,2]
[374274671,1753263042454,-460.0,0.00021369,2]
[374274673,1753263042464,-464.88,0.00021369,2]
[374274675,1753263042473,-460.0,0.00021369,2]
[374274677,1753263042483,-549.43,0.00021369,2]
[374274679,1753263042492,-460.0,0.00021369,2]
[374274681,1753263042501,-1423.3,0.00021369,2]
[374274683,1753263042511,-460.0,0.00021369,2]
[374274685,1753263042520,-460.0,0.00021369,2]
[374274687,1753263042530,-460.0,0.00021369,2]
[374274689,1753263042540,-460.0,0.00021369,2]
[374274691,1753263042549,-2006.55,0.00021369,2]
[374274693,1753263042559,-1267.73,0.00021369,2]
[374274695,1753263042569,-1053.0,0.00021369,2]
[374274697,1753263042578,-3355.53,0.00021369,2]
[374274699,1753263042587,-1025.92947994,0.00021555,5]
[374274700,1753263042597,-180.38058028,0.00021584,2]
[374274702,1753263042607,-151.0,0.000216,3]
[374274704,1753263042618,-1329.22,0.0002164,2]
[374274706,1753263042631,-766.09,0.0002164,2]
[374274708,1753263042640,-151.0,0.0002164,2]
[374274710,1753263042649,-1845.39,0.00021643,2]
[374274712,1753263042659,-620.0,0.00021643,2]
[374274714,1753263042668,-460.0,0.00021643,2]
[374274716,1753263042677,-675.93,0.00021643,2]
[374274718,1753263042689,-460.0,0.00021643,2]
[374274720,1753263042699,-607.76,0.00021643,2]
[374274722,1753263042709,-1524.84,0.00021643,2]
[374274724,1753263042718,-460.0,0.00021643,2]
[374274726,1753263042727,-797.63,0.00021643,2]
[374274728,1753263042736,-460.0,0.00021643,2]
[374274730,1753263042746,-1493.61,0.00021643,2]
[374274732,1753263042756,-460.0,0.00021643,2]
[374274734,1753263042765,-918.54,0.00021643,2]
[374274735,1753263042774,-460.0,0.00021643,2]
[374274738,1753263042784,-460.0,0.00021643,2]
[374274740,1753263042793,-1445.62,0.00021643,2]
[374274742,1753263042804,-460.0,0.00021643,2]
[374274745,1753263042813,-460.0,0.00021643,2]
[374274747,1753263042823,-464.88,0.00021643,2]
[374274750,1753263042832,-460.0,0.00021643,2]
[374274752,1753263042842,-460.0,0.00021643,2]
[374274754,1753263042851,-1423.3,0.00021643,2]
[374274756,1753263042861,-240.0619367,0.00021643,2]
[374274758,1753263042870,-460.0,0.00021643,2]
[374274760,1753263042880,-460.0,0.00021643,2]
[374274763,1753263042889,-460.0,0.00021643,2]
[374274765,1753263042898,-2006.55,0.00021643,2]
[374274766,1753263042908,-1267.73,0.00021643,2]
[374274768,1753263042918,-1053.0,0.00021643,2]
[374274770,1753263042927,-3355.53,0.00021643,2]
[374274773,1753263042939,-2012.44263308,0.00021705,2]
[374274774,1753263042948,-360.0,0.00021761,2]
[374274776,1753263042957,-1025.92947994,0.00021762,5]
[374274778,1753263042967,-260.94857746,0.0002182,2]
[374274780,1753263042976,-500.0,0.00021899,2]
[374274782,1753263042986,-1329.22,0.00021914,2]
[374274785,1753263042997,-766.09,0.00021914,2]
[374274787,1753263043007,-1845.39,0.00021917,2]
[374274788,1753263043023,-620.0,0.00021917,2]
[374274790,1753263043032,-460.0,0.00021917,2]
[374274793,1753263043042,-675.93,0.00021917,2]
[374274795,1753263043052,-460.0,0.00021917,2]
[374274797,1753263043061,-1524.84,0.00021917,2]
[374274799,1753263043071,-416.0671523,0.00021917,2]
[374274801,1753263043080,-797.63,0.00021917,2]
[374274803,1753263043090,-460.0,0.00021917,2]
[374274804,1753263043099,-1493.61,0.00021917,2]
[374274806,1753263043109,-460.0,0.00021917,2]
[374274808,1753263043119,-918.54,0.00021917,2]
[374274810,1753263043128,-250.33087753,0.00021917,2]
[374274813,1753263043138,-460.0,0.00021917,2]
[374274815,1753263043148,-1445.62,0.00021917,2]
[374274817,1753263043158,-460.0,0.00021917,2]
[374274819,1753263043167,-460.0,0.00021917,2]
[374274821,1753263043177,-500.0,0.00021917,2]
[374274823,1753263043186,-500.0,0.00021917,2]
[374274824,1753263043197,-500.0,0.00021917,2]
[374274826,1753263043206,-500.0,0.00021917,2]
[374274828,1753263043216,-500.0,0.00021917,2]
[374274830,1753263043226,-500.0,0.00021917,2]
[374274832,1753263043235,-500.0,0.00021917,2]
[374274834,1753263043244,-500.0,0.00021917,2]
[374274836,1753263043254,-500.0,0.00021917,2]
[374274838,1753263043263,-500.0,0.00021917,2]
[374274840,1753263043273,-464.88,0.00021917,2]
[374274842,1753263043282,-460.0,0.00021917,2]
[374274844,1753263043292,-460.0,0.00021917,2]
[374274846,1753263043301,-1423.3,0.00021917,2]
[374274848,1753263043311,-460.0,0.00021917,2]
[374274850,1753263043320,-460.0,0.00021917,2]
[374274853,1753263043330,-460.0,0.00021917,2]
[374274854,1753263043339,-2006.55,0.00021917,2]
[374274857,1753263043349,-1267.73,0.00021917,2]
[374274858,1753263043358,-1053.0,0.00021917,2]
[374274860,1753263043368,-3355.53,0.00021917,2]
[374274863,1753263043378,-153.0,0.00021918,2]
[374274865,1753263043388,-153.0,0.00021918,2]
[374274866,1753263043398,-153.0,0.00021918,2]
[374274867,1753263043407,-153.0,0.00021918,2]
[374274868,1753263043417,-153.0,0.00021918,2]
[374274869,1753263043426,-153.0,0.00021918,2]
[374274870,1753263043437,-153.0,0.00021918,2]
[374274872,1753263043446,-153.0,0.00021918,2]
[374274874,1753263043455,-153.0,0.00021918,2]
[374274876,1753263043468,-153.0,0.00021918,2]
[374274878,1753263043478,-153.0,0.00021918,2]
[374274880,1753263043489,-153.0,0.00021918,2]
[374274882,1753263043498,-153.0,0.00021918,2]
[374274884,1753263043507,-153.0,0.00021918,2]
[374274886,1753263043517,-153.0,0.00021918,2]
[374274888,1753263043526,-153.0,0.00021918,2]
[374274890,1753263043536,-153.0,0.00021918,2]
[374274892,1753263043546,-153.0,0.00021918,2]
[374274894,1753263043555,-153.0,0.00021918,2]
[374274896,1753263043565,-153.0,0.00021918,2]
[374274898,1753263043574,-153.0,0.00021918,2]
[374274900,1753263043583,-153.0,0.00021918,2]
[374274902,1753263043592,-153.0,0.00021918,2]
[374274904,1753263043602,-153.0,0.00021918,2]
[374274906,1753263043611,-153.0,0.00021918,2]
[374274908,1753263043623,-153.0,0.00021918,2]
[374274910,1753263043632,-153.0,0.00021918,2]
[374274912,1753263043642,-153.0,0.00021918,2]
[374274914,1753263043651,-153.0,0.00021918,2]
[374274916,1753263043660,-153.0,0.00021918,2]
[374274918,1753263043669,-153.0,0.00021918,2]
[374274920,1753263043678,-153.0,0.00021918,2]
[374274922,1753263043689,-153.0,0.00021918,2]
[374274924,1753263043698,-153.0,0.00021918,2]
[374274926,1753263043707,-153.0,0.00021918,2]
[374274928,1753263043716,-153.0,0.00021918,2]
[374274930,1753263043725,-153.0,0.00021918,2]
[374274932,1753263043734,-153.0,0.00021918,2]
[374274934,1753263043743,-153.0,0.00021918,2]
[374274936,1753263043753,-153.0,0.00021918,2]
[374274938,1753263043762,-153.0,0.00021918,2]
[374274939,1753263043772,-153.0,0.00021918,2]
[374274941,1753263043781,-153.0,0.00021918,2]
[374274943,1753263043790,-153.0,0.00021918,2]
[374274946,1753263043800,-153.0,0.00021918,2]
[374274948,1753263043809,-153.0,0.00021918,2]
[374274950,1753263043818,-153.0,0.00021918,2]
[374274952,1753263043828,-153.0,0.00021918,2]
[374274956,1753263043867,-153.0,0.00021918,2]
[374274959,1753263043877,-153.0,0.00021918,2]
[374274961,1753263043887,-153.0,0.00021918,2]
[374274963,1753263043896,-153.0,0.00021918,2]
[374274964,1753263043905,-153.0,0.00021918,2]
[374274966,1753263043914,-153.0,0.00021918,2]
[374274968,1753263043924,-153.0,0.00021918,2]
[374274970,1753263043933,-153.0,0.00021918,2]
[374274973,1753263043944,-153.0,0.00021918,2]
[374274974,1753263043953,-153.0,0.00021918,2]
[374274977,1753263043963,-153.0,0.00021918,2]
[374274978,1753263043972,-153.0,0.00021918,2]
[374274981,1753263043982,-153.0,0.00021918,2]
[374274983,1753263043994,-153.0,0.00021918,2]
[374274985,1753263044008,-153.0,0.00021918,2]
[374274987,1753263044018,-153.0,0.00021918,2]
[374274989,1753263044027,-153.0,0.00021918,2]
[374274991,1753263044037,-153.0,0.00021918,2]
[374274993,1753263044046,-153.0,0.00021918,2]
[374274994,1753263044056,-153.0,0.00021918,2]
[374274996,1753263044065,-153.0,0.00021918,2]
[374274998,1753263044075,-153.0,0.00021918,2]
[374275000,1753263044085,-153.0,0.00021918,2]
[374275002,1753263044094,-153.0,0.00021918,2]
[374275004,1753263044104,-153.0,0.00021918,2]
[374275006,1753263044114,-153.0,0.00021918,2]
[374275008,1753263044123,-153.0,0.00021918,2]
[374275010,1753263044133,-153.0,0.00021918,2]
[374275012,1753263044143,-153.0,0.00021918,2]
[374275014,1753263044152,-153.0,0.00021918,2]
[374275016,1753263044162,-153.0,0.00021918,2]
[374275018,1753263044171,-153.0,0.00021918,2]
[374275021,1753263044182,-153.0,0.00021918,2]
[374275023,1753263044194,-153.0,0.00021918,2]
[374275025,1753263044203,-153.0,0.00021918,2]
[374275027,1753263044213,-153.0,0.00021918,2]
[374275029,1753263044222,-153.0,0.00021918,2]
[374275031,1753263044232,-153.0,0.00021918,2]
[374275032,1753263044250,-153.0,0.00021918,2]
[374275034,1753263044260,-153.0,0.00021918,2]
[374275037,1753263044269,-153.0,0.00021918,2]
[374275038,1753263044278,-153.0,0.00021918,2]
[374275040,1753263044288,-153.0,0.00021918,2]
[374275043,1753263044298,-153.0,0.00021918,2]
[374275045,1753263044308,-153.0,0.00021918,2]
[374275047,1753263044318,-153.0,0.00021918,2]
[374275048,1753263044327,-153.0,0.00021918,2]
[374275051,1753263044336,-153.0,0.00021918,2]
[374275052,1753263044345,-153.0,0.00021918,2]
[374275054,1753263044355,-153.0,0.00021918,2]
[374275057,1753263044364,-153.0,0.00021918,2]
[374275058,1753263044373,-153.0,0.00021918,2]
[374275061,1753263044384,-153.0,0.00021918,2]
[374275063,1753263044393,-153.0,0.00021918,2]
[374275064,1753263044403,-153.0,0.00021918,2]
[374275066,1753263044411,-153.0,0.00021918,2]
[374275068,1753263044420,-153.0,0.00021918,2]
[374275070,1753263044429,-153.0,0.00021918,2]
[374275072,1753263044438,-153.0,0.00021918,2]
[374275074,1753263044448,-153.0,0.00021918,2]
[374275076,1753263044457,-153.0,0.00021918,2]
[374275078,1753263044467,-200.0,0.00021918,2]
[374275080,1753263044477,-150.0,0.00021918,2]
[374275082,1753263044486,-1025.92947994,0.00021969,6]
[374275084,1753263044495,-501.10459567,0.00021973,2]
[374275086,1753263044505,-501.48761306,0.00021973,2]
[374275088,1753263044514,-156.64231511,0.00021973,2]
[374275090,1753263044523,-500.0,0.00021973,2]
[374275092,1753263044532,-500.0,0.00021973,2]
[374275094,1753263044541,-280.22416713,0.00021973,2]
[374275096,1753263044550,-500.0,0.00021973,2]
[374275098,1753263044559,-274.27384637,0.00021973,2]
[374275100,1753263044568,-500.0,0.00021973,2]
[374275102,1753263044577,-500.0,0.00021973,2]
[374275104,1753263044587,-524.31518237,0.00021973,2]
[374275106,1753263044596,-500.0,0.00021973,2]
[374275108,1753263044605,-501.36703436,0.00021973,2]
[374275110,1753263044618,-412.24016643,0.00021973,2]
[374275112,1753263044627,-502.30986521,0.00021973,2]
[374275114,1753263044637,-500.0,0.00021973,2]
[374275116,1753263044646,-555.60663807,0.00021973,2]
[374275118,1753263044657,-501.03531965,0.00021973,2]
[374275120,1753263044666,-502.41710741,0.00021973,2]
[374275122,1753263044675,-500.0,0.00021973,2]
[374275124,1753263044684,-151.77505433,0.00021973,2]
[374275126,1753263044696,-500.0,0.00021973,2]
[374275128,1753263044705,-500.43577641,0.00021973,2]
[374275130,1753263044715,-500.0,0.00021973,2]
[374275132,1753263044726,-500.0,0.00021973,2]
[374275134,1753263044736,-1303.4838356,0.00022,2]
[374275136,1753263044745,-457.16,0.00022,7]
[374275139,1753263044754,-5997.14,0.00022,7]
[374275141,1753263044764,-151.0,0.00022,7]
[374275143,1753263044773,-75300.72313164,0.00022,2]
[374275145,1753263044784,-353.00342351,0.00022,2]
[374275147,1753263044793,-49675.65968025,0.00022,2]
[374275149,1753263044804,-551.01397171,0.00022,2]
[374275151,1753263044814,-1010.05668947,0.000221,2]
[374275153,1753263044823,-987.30247237,0.00022148,2]
[374275155,1753263044833,-223.0315306,0.0002216,2]
[374275157,1753263044843,-1025.92947994,0.00022176,6]
[374275159,1753263044852,-1329.22,0.00022188,2]
[374275161,1753263044861,-766.09,0.00022188,2]
[374275163,1753263044872,-500.0,0.0002219,2]
[374275165,1753263044881,-408.768841,0.00022191,7]
[374275167,1753263044891,-408.768841,0.00022191,7]
[374275169,1753263044900,-151.0,0.00022191,7]
[374275171,1753263044910,-305.729872,0.00022191,7]
[374275173,1753263044919,-305.729872,0.00022191,7]
[374275175,1753263044928,-151.0,0.00022191,7]
[374275177,1753263044937,-1845.39,0.00022191,2]
[374275179,1753263044947,-620.0,0.00022191,2]
[374275181,1753263044956,-460.0,0.00022191,2]
[374275183,1753263044965,-675.93,0.00022191,2]
[374275185,1753263044974,-460.0,0.00022191,2]
[374275187,1753263044983,-1524.84,0.00022191,2]
[374275189,1753263044993,-797.63,0.00022191,2]
[374275191,1753263045001,-460.0,0.00022191,2]
[374275193,1753263045011,-1493.61,0.00022191,2]
[374275195,1753263045020,-460.0,0.00022191,2]
[374275197,1753263045029,-918.54,0.00022191,2]
[374275199,1753263045039,-460.0,0.00022191,2]
[374275201,1753263045048,-1445.62,0.00022191,2]
[374275203,1753263045057,-460.0,0.00022191,2]
[374275205,1753263045067,-460.0,0.00022191,2]
[374275207,1753263045076,-500.0,0.00022191,2]
[374275209,1753263045085,-464.88,0.00022191,2]
[374275211,1753263045095,-460.0,0.00022191,2]
[374275213,1753263045105,-1423.3,0.00022191,2]
[374275215,1753263045114,-460.0,0.00022191,2]
[374275217,1753263045124,-460.0,0.00022191,2]
[374275219,1753263045134,-460.0,0.00022191,2]
[374275221,1753263045143,-2006.55,0.00022191,2]
[374275223,1753263045152,-1267.73,0.00022191,2]
[374275225,1753263045162,-1053.0,0.00022191,2]
[374275227,1753263045171,-3355.53,0.00022191,2]
[374275229,1753263045181,-500.0,0.000223,2]
[374275231,1753263045192,-460.0,0.00022309,2]
[374275233,1753263045201,-2296.0,0.00022328,2]
[374275235,1753263045210,-214.67886746,0.00022383,7]
[374275239,1753263045220,-160.0,0.00022383,7]
[374275241,1753263045229,-1025.92947994,0.00022383,7]
[374275243,1753263045239,-12622.36869388,0.0002239,7]
[374275245,1753263045248,-247.0,0.00022421,2]
[374275247,1753263045257,-4635.37935005,0.00022424,2]
[374275250,1753263045267,-1329.22,0.00022462,2]
[374275253,1753263045276,-766.09,0.00022462,2]
[374275256,1753263045287,-369.48,0.00022464,2]
[374275259,1753263045296,-1845.39,0.00022465,2]
[374275262,1753263045305,-620.0,0.00022465,2]
[374275265,1753263045315,-460.0,0.00022465,2]
[374275268,1753263045325,-675.93,0.00022465,2]
[374275271,1753263045334,-460.0,0.00022465,2]
[374275273,1753263045343,-1524.84,0.00022465,2]
[374275275,1753263045352,-797.63,0.00022465,2]
[374275277,1753263045361,-460.0,0.00022465,2]
[374275279,1753263045372,-1493.61,0.00022465,2]
[374275281,1753263045381,-460.0,0.00022465,2]
[374275283,1753263045392,-918.54,0.00022465,2]
[374275285,1753263045401,-307.4,0.00022465,2]
[374275287,1753263045412,-1445.62,0.00022465,2]
[374275289,1753263045423,-460.0,0.00022465,2]
[374275291,1753263045432,-460.0,0.00022465,2]
[374275293,1753263045442,-500.0,0.00022465,2]
[374275295,1753263045452,-464.88,0.00022465,2]
[374275297,1753263045461,-460.0,0.00022465,2]
[374275299,1753263045471,-1423.3,0.00022465,2]
[374275301,1753263045480,-460.0,0.00022465,2]
[374275303,1753263045490,-1950.28,0.00022465,2]
[374275306,1753263045500,-460.0,0.00022465,2]
[374275308,1753263045509,-460.0,0.00022465,2]
[374275310,1753263045519,-2006.55,0.00022465,2]
[374275312,1753263045529,-1267.73,0.00022465,2]
[374275314,1753263045538,-1053.0,0.00022465,2]
[374275316,1753263045548,-3355.53,0.00022465,2]
[374275318,1753263045557,-500.0,0.00022473,2]
[374275320,1753263045566,-500.0,0.00022473,2]
[374275322,1753263045575,-500.0,0.00022473,2]
[374275324,1753263045584,-472.58471755,0.00022473,2]
[374275326,1753263045594,-500.0,0.00022473,2]
[374275328,1753263045603,-500.0,0.00022473,2]
[374275330,1753263045613,-500.0,0.00022473,2]
[374275332,1753263045624,-500.0,0.00022473,2]
[374275334,1753263045633,-151.0,0.000225,5]
[374275336,1753263045643,-500.0,0.00022521,2]
[374275338,1753263045653,-500.0,0.00022521,2]
[374275340,1753263045662,-567.603263,0.00022521,2]
[374275342,1753263045671,-501.32912876,0.00022521,2]
[374275344,1753263045681,-500.0,0.00022521,2]
[374275346,1753263045692,-1000.0,0.00022521,2]
[374275348,1753263045702,-1068.23541758,0.00022521,2]
[374275350,1753263045712,-1000.0,0.00022521,2]
[374275351,1753263045720,-1000.0,0.00022521,2]
[374275353,1753263045730,-504.13404201,0.00022521,2]
[374275355,1753263045739,-500.66791734,0.00022521,2]
[374275357,1753263045748,-1025.92947994,0.0002259,7]
[374275359,1753263045758,-151.426985,0.0002259,7]
[374275361,1753263045767,-2296.0,0.00022593,2]
[374275363,1753263045778,-260.94857746,0.00022642,2]
[374275365,1753263045787,-508.91,0.00022663,3]
[374275368,1753263045797,-150.018575,0.0002272,2]
[374275370,1753263045808,-150.018575,0.0002272,2]
[374275372,1753263045819,-385.95,0.00022734,2]
[374275374,1753263045828,-1329.22,0.00022736,2]
[374275376,1753263045838,-766.09,0.00022736,2]
[374275378,1753263045848,-151.0,0.00022736,7]
[374275380,1753263045857,-151.0,0.00022736,7]